Workbook

Sheet Ajustado
F2: Cabletronics | J2: Compurent | N2: Novotechno | R2: Teamit
A3: # | B3: Categoria | C3: Descripcion | D3: Especificaciones | E3: Cantidad | F3: Valor unitario | G3: IVA | H3: Valor con IVA | I3: TOTAL (cantidad *valor con IVA) | J3: Valor unitario | K3: IVA | L3: Valor con IVA | M3: TOTAL (cantidad *valor con IVA) | N3: Valor unitario | O3: IVA | P3: Valor con IVA | Q3: TOTAL (cantidad *valor con IVA) | R3: Valor unitario | S3: IVA | T3: Valor con IVA | U3: TOTAL (cantidad *valor con IVA) | V3: Promedio | W3: Mediana | X3: Desviación | Y3: Coeficiente de disperción | Z3: Codigo unspsc
A4: 1 | B4: Suministros Informaticos | C4: Escanner de codigo de barras 1D | D4: *Fuentes de Luz: 650nm laser (diodo laser visible seguro) *Capacidad de decodificación: 10 *Simbologias: EAN-8, EAN-13, UPC-E, CODE39, CODE93, CODE128, Codebar, Industrial 2 of 5, Interleave 2 of 5, Matrix 2 of 5, MSI, China Post Code y todos los códigos de barras 1D *Tipo de scaneo: Laser lineal *Velocidad de escaneo: 300 scaneos por segundo *Metodo de scaneo: Manual y continuo *Angulo de escaneo: sesgo 65°, inclinación 55° y rotación 65° *Precisión: 3 & 4 mil. (0.1mm) *Profundidad del campo de exploracion: 0-280mm (0.33mm, PCS90%) *Tasa de error: Menos de 1 en 1´000.000 *Alertas: Indicador led - función correcta *Indicador acustico - Tono función correcta *Interfaz: USB-HID | E4: 9 | F4: $ 176,754 | G4: =F4*19% -> $ 33,583 | H4: =F4+G4 -> $ 210,337 | I4: =H4*E4 -> $ 1,893,032 | J4: 0 | L4: =J4+K4 -> 0 | M4: =L4*E4 -> 0 | N4: 0 | P4: =N4+O4 -> 0 | Q4: =P4*E4 -> 0 | R4: $ 117,920 | S4: =R4*19% -> $ 22,405 | T4: =R4+S4 -> $ 140,325 | U4: =T4*E4 -> $ 1,262,923 | V4: =AVERAGE(I4,U4) -> $ 1,577,977 | W4: =MEDIAN(I4,U4) -> $ 1,577,977 | X4: =STDEV(I4,U4) -> $ 445,554 | Y4: =X4/V4 -> 28% | Z4: 43211701
A5: 2 | B5: Suministros Informaticos | C5: UPS online 2000va/1600w | D5: SALIDA *Capacidad eléctrica de salida 1.6Kilovatios / 2.0kVA *Potencia máx. configurable (vatios) 1.6Kilovatios / 2.0kVA *Voltaje de salida nominal 120V, *Eficacia con carga completa 88.0 %, *Distorsión de Voltaje de Salida 3 % *Frecuencia de salida (sincronizada con la red eléctrica) 50/60 Hz +/- 3 Hz Sincronizado para principale *Otras tensiones de salida 110, 115*Factor de carga pico 3:1 *Topología Online de doble conversión *Tipo de forma de onda Onda senoidal *Conexiones de salida (4) NEMA 5-20R *Derivación interna (automática y manual) ENTRADA *Voltaje Nominal de Entrada 120V *Frecuencia de entrada 40-70 Hz *Tipo de Conexión de Entrada NEMA L5-20P *Longitud de Cable 1.5metros *Rango de voltaje de entrada en operaciones principales: 55 - 150 Adjustable (half load), 85 - 150V *Número de cables de alimentación:1 *Eficacia con carga completa 88.0 % *Otras tensiones de entrada 110, 115 BATERIAS *Tipo de batería Batería de plomo y ácido *Tiempo típico de recarga 4hour(s) *Suministro de carga de baterías (vatios) 76Vatios *Capacidad VA/hora de la Batería 304 *Rendimiento View Efficiency Graph (Disponible en la ficha técnica de la página COMUNICACIONES Puerto (s) Interfaz DB-9 RS-232, Intelligent Smart Slot, USB Panel de control Consola de estado y control lcd multifunción Alarma Acústica Alarma, si funciona con batería: alarma característica de batería baja: alarma de tono continuo de sobrecarga PROTECCION Y FILTRO CONTRA PICOS DE VOLTAJE Surge energy rating 600Julio CONFORMIDAD Aceptaciones CE, IEC 62040-1-1, IEC 62040-1-2 Garantía estándar 2 años para reparaciones o recambio | E5: 5 | F5: $ 5,299,664 | G5: =F5*19% -> $ 1,006,936 | H5: =F5+G5 -> $ 6,306,600 | I5: =H5*E5 -> $ 31,532,998 | J5: $ 2,947,070 | K5: =J5*19% -> $ 559,943 | L5: =J5+K5 -> $ 3,507,013 | M5: =L5*E5 -> $ 17,535,067 | N5: $ 8,288,000 | O5: =N5*19% -> $ 1,574,720 | P5: =N5+O5 -> $ 9,862,720 | Q5: =P5*E5 -> $ 49,313,600 | R5: $ 2,700,000 | S5: =R5*19% -> $ 513,000 | T5: =R5+S5 -> $ 3,213,000 | U5: =T5*E5 -> $ 16,065,000 | V5: =AVERAGE(I5,M5,Q5,U5) -> $ 28,611,666 | W5: =MEDIAN(I5,M5,Q5,U5) -> $ 24,534,032 | X5: =STDEV(I5:U5) -> $ 14,500,687 | Y5: =X5/V5 -> 51% | AA5: =E5*J5 -> $ 14,735,350
A6: 3 | B6: Suministros Informaticos | C6: Impresora multifuncional a blanco y negro | D6: Tecnologías de resolución de impresión FastRes 1200, ProRes1200, Economode Calidad de impresión en negro (óptima) Líneas nas (1200 x 1200 dpi) Velocidad de impresión monocromática (ISO,A4) Hasta 40 ppm Velocidad de impresión monocromática (ISO, carta) Hasta 42 ppm Velocidad de impresión Imprime hasta 42/40 ppm (A4/carta) Funciones Impresión, copia, escaneado, fax Impresión a doble cara Automático (por defecto) Ciclo de trabajo (mensual, A4) Hasta 80.000 páginas Ciclo de trabajo (mensual, carta) Up to 80,000 pages Funciones del software inteligente de la impresora Impresión automática a doble cara e impresión de folletos, impresión N-up, compaginación, marcas de agua, instalación del controlador de impresora solamente, función Eco Mode para ahorrar tóner, acepta diferentes tamaños y tipos de papel [1] Funciones avanzadas del escáner Vista previa de copia Funciones de software inteligente de fax Reducción de fax automática; Remarcado automático; Envío retardado; Reenvío de fax; Interfaz TAM; Barrera para correo no deseado; Detección de tono distintivo; Página de portada; Bloquear fax; Códigos de facturación; Guardar y cargar; Informes de actividad de fax; Conguración del prejo de marcación; Imprimir registro de faxes; Fax digital HP Tecnología de recurso de ahorro de energía Tecnología HP Auto-On/Auto-Off; Tecnología Instant-on; Tóner EcoSmart negro Cartuchos de reemplazo Cartucho de tóner original HP LaserJet 151A, negro (aproximadamente 3050 páginas), W1510A; Cartucho de tóner original HP LaserJet 151X, negro (aproximadamente 9700 páginas), W1510X [4] Consumibles especiales Cartucho HP JetIntelligence Módem 33,6 kbps Capacidades de red Sí, a través de 10/100/1000Base-TX Ethernet y Gigabit incorporados; Ethernet de cruzado automático; Autenticación mediante 802.1X Capacidad de impresión móvil Aplicación HP Smart; Apple AirPrint™; Con certicación Mopria™; Impresión Wi-Fi Direct® Protocolos de red, admitidos TCP/IP, IPv4, IPv6; Impresión: Puerto TCP-IP 9100 Direct Mode, LPD (solo admite colas de datos sin procesar), Apple AirPrint™, Mopria, impresión IPP; Detección: SLP, Bonjour, Web Services Discovery; Conguración de IP: IPv4 (BootP, DHCP, AutoIP, Manual), IPv6 (Enlace sin estado local y a través del enrutador, con estado completo a través de DHCPv6), administración de certicados y seguridad SSL; Administración: SNMPv1, SNMPv2, SNMPv3, HTTP/HTTPS, Syslog, descarga de FW de FTP Software incluido No se incluyen soluciones de software en la caja, solo en http://hp.com; http://123.hp.com; Sistemas operativos compatibles Windows 11; Windows 10; Windows 7; Windows Client OS; Android; iOS; SO móviles; macOS 10.15 Catalina; macOS 11 Big Sur; macOS 12 Monterey Especicaciones de impacto sustentable Reciclable a través de HP Planet Partners; Contiene plástico reciclado posconsumo Etiquetas ecológicas Declaración de IT ECO Conformidad Blue Angel No, consulte el documento de ECI (Información de Comparación de Ecolabel) Velocidad de copia (negro, calidad normal, A4) Hasta 40 cpm Velocidad de copiado en negro (normal, carta) Up to 42 cpm Velocidad de copia en negro dúplex (A4) Hasta 34 cpm. Velocidad de copia en negro dúplex (carta) Up to 36 cpm Resolución de fax en negro (óptima) Hasta 300 x 300 ppp Fax Sí Velocidad de escaneo (normal, A4) Hasta 29 ppm/46 ipm (blanco y negro), hasta 20 ppm/34 ipm (color) Velocidad de escaneo (normal, carta) Up to 31 ppm/49 ipm (b&w), up to 21 ppm/36 ipm (color) Formato del archivo de digitalización PDF, JPG, TIFF Modos de entrada de digitalización Botones de escaneo, copiado, correo electrónico o archivos en el panel frontal; Software de Escaneo HP; y aplicación de usuario mediante TWAIN o WIA Tecnología de escaneado (CIS) Sensor de imagen de contacto Tipo de escáner Cama plana, alimentador automático de documentos (ADF) Área de pantalla (imperial) 2.13 x 1.59 in Área de pantalla (métrica) 5,4 x 4,05 cm Pantalla 2.7" (6.86 cm) intuitive color touchscreen (CGD) Dimensiones mínimas (anch. x prof. x alt.) 420 x 390 x 323 mm (sin bandejas ni cubiertas extendidas) Dimensiones mínimas (anch. x prof. x alt.) 16.54 x 15.35 x 12.72 in (without trays and covers not extended) Peso 12,6 kg Peso 27.78 lb. Consumo de energía 510 vatios (impresión activa), 7,5 vatios (lista), 0,9 vatios (suspensión), 0,9 vatios (apagado automático/despertar en LAN, activado desde la compra), 0,06 vatios (apagado automático/encendido manual), 0,06 vatios (apagado manual) (Los requisitos de alimentación dependen del país/región en el que se venda la impresora. No modifique los voltajes de funcionamiento. Podría ocasionar daños en la impresora e invalidar la garantía del producto.) Tipo de fuente de alimentación Fuente de alimentación interna (integrada) Garantía delfabricante Un año de garantía de reparación en el almacén / banco. Las opciones de garantía y asistencia varían según el producto, el país y los requisitos legales locales. Póngase en contacto con su proveedor contractual o visite hp.com/support para obtener información sobre las galardonadas opciones de asistencia y servicio de HP en su región. (código de garantía 4E; ID de garantía A033) | E6: 3 | F6: $ 3,358,319 | G6: $ 638,081 | H6: $ 3,996,400 | I6: $ 11,989,200 | J6: $ 1,952,742 | K6: $ 1,952,742 | L6: =J6+K6 -> $ 3,905,484 | M6: =L6*E6 -> $ 11,716,453 | N6: $ 1,674,200 | O6: $ 318,098 | P6: $ 1,992,298 | Q6: =P6*E6 -> $ 5,976,894 | R6: $ 2,310,000 | S6: $ 438,900 | T6: $ 2,748,900 | U6: =T6*E6 -> $ 8,246,700 | V6: =AVERAGE(I6,M6,Q6,U6) -> $ 9,482,312 | W6: =MEDIAN(I6,M6,Q6,U6) -> $ 9,981,577 | X6: =STDEV(I6:U6) -> $ 4,010,461 | Y6: 42% | Z6: 43212100 | AA6: =E6*J6 -> $ 5,858,227
A7: 5 | B7: Suministros Informaticos | C7: PC mesa con licenciamiento | D7: Procesador Intel® Core™ i5-13500 * 14 núcleos (6 P-Cores y 8 E-Cores), 20 hilos, 24 MB Intel® Smart *Cache. Max Turbo Frequency: 4.80 GHz * P-Core Frequency => Base: 2.50 GHz - Max Turbo: 4.80 GHz * E-Core Frequency => Base: 1.80 GHz - Max Turbo: 3.50 GHz *Chipset Intel® Q670 *Sistema Operativo Windows 11 Pro de 64 bits en Español. *Pantalla LCD de 23.8" en diagonal, FHD (1920x1080), con retroiluminación WLED, antirreflejo, con Base de altura ajustable *Gráficos Intel® UHD Graphics 770 *Memoria RAM 16 GB (1x16GB) DDR4 3200 SODIMM Soporta hasta 64 GB en (2) slots *Almacenamiento Unidad de estado solido M.2 SSD 512 GB 2280 PCIe NVMe Value *Teclado Teclado HP alámbrico en Español *Mouse Mouse alámbrico *Audio HD con estéreo códec Realtek ALC3252, compatible con tecnología de transmisión múltiple *Cámara Web Webcam FHD 5MP con arreglo de doble micrófono digital integrado *Conectividad LAN: Intel® I219-LM 1 Gigabit Network Connection *WLAN: Realtek RTL8852BE Wi-Fi 6 802.11 + Bluetooth 5.3 *Fuente de poder Adaptador AC de 150 Watt, eficiencia promedio de 88%. Estándar Militar MIL-STD-810H. PARA PORTATIL: ENERGY STAR®️ 8.0, EPEAT GOLD, TCO, FCC, UL, CE, ROHS, ISO 14001-9001, PARA AIO: ENERGY STAR®️ 8.0, EPEAT GOLD, TCO 9.0, FCC, UL, CE, ROHS, ISO 14001-9001, MIL-STD-810H | E7: 134 | F7: $ 6,841,839 | G7: $ 1,299,949 | H7: $ 8,141,788 | I7: $ 1,090,999,576 | J7: =(990.92*4342.9)+(33.33*4342.9) -> $ 4,448,215 | K7: =J7*19% -> $ 845,161 | L7: $ 5,293,376 | M7: =E7*L7 -> $ 709,312,416 | N7: $ 4,283,000 | O7: $ 813,770 | P7: $ 5,096,770 | Q7: =P7*E7 -> $ 682,967,180 | R7: $ 4,152,000 | S7: $ 788,880 | T7: $ 4,940,880 | U7: =T7*E7 -> $ 662,077,920 | V7: =AVERAGE(I7,M7,Q7,U7) -> $ 786,339,273 | W7: =MEDIAN(I7,M7,Q7,U7) -> $ 696,139,798 | X7: =STDEV(I7:U7) -> $ 389,700,816 | Y7: 50% | Z7: 43211507
A8: 6 | B8: Suministros Informaticos | C8: PC portatil con licenciamiento | D8: Procesador Intel® Core™ i5-1334U 10 núcleos (2 P-Cores y 8 E-Cores), 12 hilos, 12 MB Intel® Smart Cache Max Turbo Frequency: 4.60 GHz P-Core Frequency => Base: 1.30 GHz - Max Turbo: 4.60 GHz E-Core Frequency => Base: 0.90 GHz - Max Turbo: 3.40 GHz *Chipset Integrado en el procesador *Sistema Operativo Windows 11 Pro de 64 bits en Español. *Pantalla LCD delgada de 14" en diagonal con retroiluminación LED, FHD (1920x1080), con antirreflejo, de 250 nits, UWVA *Gráficos Integrada: Intel® UHD Graphics *Memoria RAM 16 GB (1x16GB) DDR4 3200 *Soporta hasta 32 GB en (2) slots SODIMM *Almacenamiento Unidad de estado solido M.2 SSD 512 GB PCIe NVMe Value *Teclado HP Premium, resistente a derrames en Español *Mouse ClickPad con soporte para gestos y toques múltiples *Audio HD codec Realtek ALC3247 con 2 altavoces estéreo integrados *Cámara Web Webcam HD 720p con arreglo de 2 micrófonos integrados *Conectividad LAN: Realtek RTL8111HSH 10/100/1000 Integrated NIC WLAN: Intel AX211 Wi-Fi 6E 802.11 ax 2x2+ Bluetooth 5.3 *Batería Polímero de 3 celdas 42 Whr de larga duración con autonomía de hasta 11 horas y 30 minutos (MobileMark2018) en Win 10 *Adaptador AC Adaptador AC de 45 Watt *Peso A partir de 1.38 Kg. Estándar Militar MIL-STD-810H. PARA PORTATIL: ENERGY STAR®️ 8.0, EPEAT GOLD, TCO, FCC, UL, CE, ROHS, ISO 14001-9001, PARA AIO: ENERGY STAR®️ 8.0, EPEAT GOLD, TCO 9.0, FCC, UL, CE, ROHS, ISO 14001-9001, MIL-STD-810H | E8: 15 | F8: $ 6,576,709 | G8: $ 1,249,575 | H8: $ 7,826,284 | I8: $ 117,394,255 | J8: =4044488.89+(47.48*4342.9) -> $ 4,250,690 | K8: $ 807,631 | L8: $ 5,058,321 | M8: =E8*L8 -> $ 75,874,813 | N8: $ 4,110,555 | O8: $ 781,005 | P8: $ 4,891,560 | Q8: =P8*E8 -> $ 73,373,407 | R8: $ 4,764,000 | S8: $ 905,160 | T8: $ 5,669,160 | U8: =T8*E8 -> $ 85,037,400 | V8: =AVERAGE(I8,M8,Q8,U8) -> $ 87,919,969 | W8: =MEDIAN(I8,M8,Q8,U8) -> $ 80,456,106 | X8: =STDEV(I8:U8) -> $ 41,848,810 | Y8: 48% | Z8: 43211503
A9: 7 | B9: Suministros Informaticos | C9: Computador apple Laptop | D9: MacBook Pro de 14 pulgadas: Chip M3 Pro de Apple con CPU de 11 núcleos y GPU de 14 núcleos, almacenamiento de 512 GB SSD y memoria unificada de 18 GB | E9: 1 | F9: $ 17,806,457 | G9: $ 3,383,227 | H9: $ 21,189,684 | I9: $ 21,189,684 | J9: $ 9,241,056 | K9: $ 1,755,801 | L9: $ 10,996,856 | M9: =E9*L9 -> $ 10,996,856 | N9: $ 9,467,734 | O9: $ 1,798,869 | P9: $ 11,266,603 | Q9: =P9*E9 -> $ 11,266,603 | R9: $ 11,250,000 | S9: $ 2,137,500 | T9: $ 13,387,500 | U9: =T9*E9 -> $ 13,387,500 | V9: =AVERAGE(I9,M9,Q9,U9) -> $ 14,210,161 | W9: =MEDIAN(I9,M9,Q9,U9) -> $ 12,327,052 | X9: =STDEV(I9:U9) -> $ 5,420,302 | Y9: 38% | Z9: 43211503
A10: 8 | B10: Suministros Informaticos | C10: Tablet | D10: Processor MediaTek Helio G99 (8C, 2x A76 @2.2GHz + 6x A55 @2.0GHz) *Graphics Integrated Arm Mali-G57 MC2 GPU *Chipset MediaTek SoC Platform *Memory 6GB Soldered LPDDR4x *Storage 128GB UFS 2.2 (uMCP) *Card Reader microSD Card Slot *Storage Support • 128GB uMCP (UFS-Based MCP, UFS 2.2) • microSD card, supports up to 1TB (exFAT) *Speakers speakers, 1W x4, optimized with Dolby Atmos® *Microphone 2x, Array *Camera Front 8.0MP / Rear 13.0MP *VoiceCall No *Sensors • Accelerometer (G) sensor • Ambient light sensor (ALS) • Coulomb counter • Gyroscope sensor • Hall sensor • Proximity (P) sensor Vibration Motor Eccentric Rotating Mass (ERM) Battery Integrated 7500mAh (Min.) / 7700mAh (Typ.) Power Adapter 10V / 2A Keyboard *Non-backlit, Spanish (LA) *Pen Pen Bundled | E10: 20 | F10: $ 1,472,947 | G10: $ 279,860 | H10: $ 1,752,807 | I10: $ 35,056,140 | J10: =282.8*4342.9 -> $ 1,228,172 | K10: $ 233,353 | L10: $ 1,461,525 | M10: =E10*L10 -> $ 29,230,496 | N10: 0 | P10: 0 | Q10: =P10*E10 -> 0 | R10: $ 1,496,000 | S10: $ 284,240 | T10: $ 1,780,240 | U10: =T10*E10 -> $ 35,604,800 | V10: =AVERAGE(I10,M10,U10) -> $ 33,297,146 | W10: =MEDIAN(I10,M10,U10) -> $ 35,056,140 | X10: =STDEV(I10,M10,U10) -> $ 3,532,490 | Y10: 11% | Z10: 43211509
A11: 9 | B11: Suministros Informaticos | C11: Disco duro externo | D11: Interface: USB 3.2 Gen1 (USB 5Gbps) *Capacity: 2TB (black only) / 5TB (black only) *Dimensions (L x W x H): (/2TB) 121x81x21mm / 4.8x3.2x0.8" * Weight: (/2TB) 201g / 7.1oz *Warranty: 3-year limite | E11: 4 | F11: $ 667,819 | G11: $ 126,886 | H11: $ 794,705 | I11: $ 3,178,821 | J11: =75*4342.9 -> $ 325,718 | K11: $ 61,886 | L11: $ 387,604 | M11: =E11*L11 -> $ 1,550,415 | N11: $ 467,405 | O11: =N11*19% -> $ 88,807 | P11: $ 556,212 | Q11: =P11*E11 -> $ 2,224,848 | R11: $ 364,650 | S11: $ 69,284 | T11: $ 433,934 | U11: =T11*E11 -> $ 1,735,734 | V11: =AVERAGE(I11,M11,Q11,U11) -> $ 2,172,454 | W11: =MEDIAN(I11,M11,Q11,U11) -> $ 1,980,291 | X11: =STDEV(I11:U11) -> $ 979,660 | Y11: 45% | Z11: 43201800
A12: 12 | B12: Suministros Informaticos | C12: Guaya para pc | D12: Guaya de Seguridad con llave | E12: 50 | F12: $ 70,701 | G12: $ 13,433 | H12: $ 84,134 | I12: $ 4,206,723 | J12: 0 | K12: 0 | L12: 0 | M12: =E12*L12 -> 0 | N12: $ 28,103 | O12: =N12*19% -> $ 5,340 | P12: $ 33,443 | Q12: =P12*E12 -> $ 1,672,129 | R12: $ 41,800 | S12: $ 7,942 | T12: $ 49,742 | U12: =T12*E12 -> $ 2,487,100 | V12: =AVERAGE(I12,Q12,U12) -> $ 2,788,650 | W12: =MEDIAN(I12,Q12,U12) -> $ 2,487,100 | X12: =STDEV(I12,Q12,U12) -> $ 1,293,925 | Y12: 46%
A13: 13 | B13: Suministros Informaticos | C13: Patch Cord | D13: Patch cord 1.5 Mts Cat6 Certificado Azul | E13: 250 | F13: $ 40,139 | G13: $ 7,626 | H13: $ 47,766 | I13: $ 11,941,436 | J13: 0 | K13: 0 | L13: 0 | M13: =E13*L13 -> 0 | N13: $ 13,000 | O13: =N13*19% -> $ 2,470 | P13: $ 15,470 | Q13: =P13*E13 -> $ 3,867,500 | R13: $ 9,000 | S13: $ 1,710 | T13: $ 10,710 | U13: =T13*E13 -> $ 2,677,500 | V13: =AVERAGE(I13,Q13,U13,) -> $ 4,621,609 | W13: =MEDIAN(I13,Q13,U13) -> $ 3,867,500 | X13: =STDEV(I13,Q13,U13) -> $ 5,040,256 | Y13: =X13/V13 -> 109% | Z13: 43223300
B14: TOTAL IVA Incluido | I14: =SUM(I4:I13) -> $ 1,329,381,864 | M14: =SUM(M4:M13) -> $ 856,216,516 | Q14: =SUM(Q4:Q13) -> $ 830,662,161 | U14: =SUM(U4:U13) -> $ 828,582,577 | V14: =SUM(V4:V13) -> $ 971,021,217 | W14: =SUM(W4:W13) -> $ 868,407,574 | X14: =SUM(X4:X13) -> $ 466,772,959 | Y14: =X14/V14 -> 48%
V15: =AVERAGE(I14:U14) -> $ 961,210,780

Sheet Hoja1 (2)
F2: Cabletronics | J2: Compurent | N2: Novotechno | R2: Teamit
A3: # | B3: Categoria | C3: Descripcion | D3: Especificaciones | E3: Cantidad | F3: Valor unitario | G3: IVA | H3: Valor con IVA | I3: TOTAL (cantidad *valor con IVA) | J3: Valor unitario | K3: IVA | L3: Valor con IVA | M3: TOTAL (cantidad *valor con IVA) | N3: Valor unitario | O3: IVA | P3: Valor con IVA | Q3: TOTAL (cantidad *valor con IVA) | R3: Valor unitario | S3: IVA | T3: Valor con IVA | U3: TOTAL (cantidad *valor con IVA) | V3: Promedio | W3: Mediana | X3: Desviación | Y3: Coeficiente de disperción | Z3: Codigo unspsc
A4: 1 | B4: Suministros Informaticos | C4: Escanner de codigo de barras 1D | D4: *Fuentes de Luz: 650nm laser (diodo laser visible seguro) *Capacidad de decodificación: 10 *Simbologias: EAN-8, EAN-13, UPC-E, CODE39, CODE93, CODE128, Codebar, Industrial 2 of 5, Interleave 2 of 5, Matrix 2 of 5, MSI, China Post Code y todos los códigos de barras 1D *Tipo de scaneo: Laser lineal *Velocidad de escaneo: 300 scaneos por segundo *Metodo de scaneo: Manual y continuo *Angulo de escaneo: sesgo 65°, inclinación 55° y rotación 65° *Precisión: 3 & 4 mil. (0.1mm) *Profundidad del campo de exploracion: 0-280mm (0.33mm, PCS90%) *Tasa de error: Menos de 1 en 1´000.000 *Alertas: Indicador led - función correcta *Indicador acustico - Tono función correcta *Interfaz: USB-HID | E4: 9 | F4: $ 176,754 | G4: =F4*19% -> $ 33,583 | H4: =F4+G4 -> $ 210,337 | I4: =H4*E4 -> $ 1,893,032 | J4: 0 | L4: =J4+K4 -> 0 | M4: =L4*I4 -> 0 | N4: 0 | P4: =N4+O4 -> 0 | Q4: =P4*M4 -> 0 | R4: $ 117,920 | S4: =R4*19% -> $ 22,405 | T4: =R4+S4 -> $ 140,325 | U4: =T4*E4 -> $ 1,262,923 | V4: =AVERAGE(I4,U4) -> $ 1,577,977 | W4: =MEDIAN(I4,U4) -> $ 1,577,977 | X4: =STDEV(I4,U4) -> $ 445,554 | Y4: =X4/V4 -> 28% | Z4: 43211701
A5: 2 | B5: Suministros Informaticos | C5: UPS online 2000va/1600w | D5: SALIDA *Capacidad eléctrica de salida 1.6Kilovatios / 2.0kVA *Potencia máx. configurable (vatios) 1.6Kilovatios / 2.0kVA *Voltaje de salida nominal 120V, *Eficacia con carga completa 88.0 %, *Distorsión de Voltaje de Salida 3 % *Frecuencia de salida (sincronizada con la red eléctrica) 50/60 Hz +/- 3 Hz Sincronizado para principale *Otras tensiones de salida 110, 115*Factor de carga pico 3:1 *Topología Online de doble conversión *Tipo de forma de onda Onda senoidal *Conexiones de salida (4) NEMA 5-20R *Derivación interna (automática y manual) ENTRADA *Voltaje Nominal de Entrada 120V *Frecuencia de entrada 40-70 Hz *Tipo de Conexión de Entrada NEMA L5-20P *Longitud de Cable 1.5metros *Rango de voltaje de entrada en operaciones principales: 55 - 150 Adjustable (half load), 85 - 150V *Número de cables de alimentación:1 *Eficacia con carga completa 88.0 % *Otras tensiones de entrada 110, 115 BATERIAS *Tipo de batería Batería de plomo y ácido *Tiempo típico de recarga 4hour(s) *Suministro de carga de baterías (vatios) 76Vatios *Capacidad VA/hora de la Batería 304 *Rendimiento View Efficiency Graph (Disponible en la ficha técnica de la página COMUNICACIONES Puerto (s) Interfaz DB-9 RS-232, Intelligent Smart Slot, USB Panel de control Consola de estado y control lcd multifunción Alarma Acústica Alarma, si funciona con batería: alarma característica de batería baja: alarma de tono continuo de sobrecarga PROTECCION Y FILTRO CONTRA PICOS DE VOLTAJE Surge energy rating 600Julio CONFORMIDAD Aceptaciones CE, IEC 62040-1-1, IEC 62040-1-2 Garantía estándar 2 años para reparaciones o recambio | E5: 5 | F5: $ 5,299,664 | G5: =F5*19% -> $ 1,006,936 | H5: =F5+G5 -> $ 6,306,600 | I5: =H5*E5 -> $ 31,532,998 | J5: $ 2,947,070 | K5: =J5*19% -> $ 559,943 | L5: =J5+K5 -> $ 3,507,013 | M5: =L5*E5 -> $ 17,535,067 | N5: $ 8,288,000 | O5: =N5*19% -> $ 1,574,720 | P5: =N5+O5 -> $ 9,862,720 | Q5: =P5*E5 -> $ 49,313,600 | R5: $ 2,700,000 | S5: =R5*19% -> $ 513,000 | T5: =R5+S5 -> $ 3,213,000 | U5: =T5*E5 -> $ 16,065,000 | V5: =AVERAGE(I5,M5,Q5,U5) -> $ 28,611,666 | W5: =MEDIAN(I5,M5,Q5,U5) -> $ 24,534,032 | X5: =STDEV(I5:U5) -> $ 14,500,687 | Y5: =X5/V5 -> 51%
A6: 3 | B6: Suministros Informaticos | C6: Impresora multifuncional a blanco y negro | D6: Tecnologías de resolución de impresión FastRes 1200, ProRes1200, Economode Calidad de impresión en negro (óptima) Líneas nas (1200 x 1200 dpi) Velocidad de impresión monocromática (ISO,A4) Hasta 40 ppm Velocidad de impresión monocromática (ISO, carta) Hasta 42 ppm Velocidad de impresión Imprime hasta 42/40 ppm (A4/carta) Funciones Impresión, copia, escaneado, fax Impresión a doble cara Automático (por defecto) Ciclo de trabajo (mensual, A4) Hasta 80.000 páginas Ciclo de trabajo (mensual, carta) Up to 80,000 pages Funciones del software inteligente de la impresora Impresión automática a doble cara e impresión de folletos, impresión N-up, compaginación, marcas de agua, instalación del controlador de impresora solamente, función Eco Mode para ahorrar tóner, acepta diferentes tamaños y tipos de papel [1] Funciones avanzadas del escáner Vista previa de copia Funciones de software inteligente de fax Reducción de fax automática; Remarcado automático; Envío retardado; Reenvío de fax; Interfaz TAM; Barrera para correo no deseado; Detección de tono distintivo; Página de portada; Bloquear fax; Códigos de facturación; Guardar y cargar; Informes de actividad de fax; Conguración del prejo de marcación; Imprimir registro de faxes; Fax digital HP Tecnología de recurso de ahorro de energía Tecnología HP Auto-On/Auto-Off; Tecnología Instant-on; Tóner EcoSmart negro Cartuchos de reemplazo Cartucho de tóner original HP LaserJet 151A, negro (aproximadamente 3050 páginas), W1510A; Cartucho de tóner original HP LaserJet 151X, negro (aproximadamente 9700 páginas), W1510X [4] Consumibles especiales Cartucho HP JetIntelligence Módem 33,6 kbps Capacidades de red Sí, a través de 10/100/1000Base-TX Ethernet y Gigabit incorporados; Ethernet de cruzado automático; Autenticación mediante 802.1X Capacidad de impresión móvil Aplicación HP Smart; Apple AirPrint™; Con certicación Mopria™; Impresión Wi-Fi Direct® Protocolos de red, admitidos TCP/IP, IPv4, IPv6; Impresión: Puerto TCP-IP 9100 Direct Mode, LPD (solo admite colas de datos sin procesar), Apple AirPrint™, Mopria, impresión IPP; Detección: SLP, Bonjour, Web Services Discovery; Conguración de IP: IPv4 (BootP, DHCP, AutoIP, Manual), IPv6 (Enlace sin estado local y a través del enrutador, con estado completo a través de DHCPv6), administración de certicados y seguridad SSL; Administración: SNMPv1, SNMPv2, SNMPv3, HTTP/HTTPS, Syslog, descarga de FW de FTP Software incluido No se incluyen soluciones de software en la caja, solo en http://hp.com; http://123.hp.com; Sistemas operativos compatibles Windows 11; Windows 10; Windows 7; Windows Client OS; Android; iOS; SO móviles; macOS 10.15 Catalina; macOS 11 Big Sur; macOS 12 Monterey Especicaciones de impacto sustentable Reciclable a través de HP Planet Partners; Contiene plástico reciclado posconsumo Etiquetas ecológicas Declaración de IT ECO Conformidad Blue Angel No, consulte el documento de ECI (Información de Comparación de Ecolabel) Velocidad de copia (negro, calidad normal, A4) Hasta 40 cpm Velocidad de copiado en negro (normal, carta) Up to 42 cpm Velocidad de copia en negro dúplex (A4) Hasta 34 cpm. Velocidad de copia en negro dúplex (carta) Up to 36 cpm Resolución de fax en negro (óptima) Hasta 300 x 300 ppp Fax Sí Velocidad de escaneo (normal, A4) Hasta 29 ppm/46 ipm (blanco y negro), hasta 20 ppm/34 ipm (color) Velocidad de escaneo (normal, carta) Up to 31 ppm/49 ipm (b&w), up to 21 ppm/36 ipm (color) Formato del archivo de digitalización PDF, JPG, TIFF Modos de entrada de digitalización Botones de escaneo, copiado, correo electrónico o archivos en el panel frontal; Software de Escaneo HP; y aplicación de usuario mediante TWAIN o WIA Tecnología de escaneado (CIS) Sensor de imagen de contacto Tipo de escáner Cama plana, alimentador automático de documentos (ADF) Área de pantalla (imperial) 2.13 x 1.59 in Área de pantalla (métrica) 5,4 x 4,05 cm Pantalla 2.7" (6.86 cm) intuitive color touchscreen (CGD) Dimensiones mínimas (anch. x prof. x alt.) 420 x 390 x 323 mm (sin bandejas ni cubiertas extendidas) Dimensiones mínimas (anch. x prof. x alt.) 16.54 x 15.35 x 12.72 in (without trays and covers not extended) Peso 12,6 kg Peso 27.78 lb. Consumo de energía 510 vatios (impresión activa), 7,5 vatios (lista), 0,9 vatios (suspensión), 0,9 vatios (apagado automático/despertar en LAN, activado desde la compra), 0,06 vatios (apagado automático/encendido manual), 0,06 vatios (apagado manual) (Los requisitos de alimentación dependen del país/región en el que se venda la impresora. No modifique los voltajes de funcionamiento. Podría ocasionar daños en la impresora e invalidar la garantía del producto.) Tipo de fuente de alimentación Fuente de alimentación interna (integrada) Garantía delfabricante Un año de garantía de reparación en el almacén / banco. Las opciones de garantía y asistencia varían según el producto, el país y los requisitos legales locales. Póngase en contacto con su proveedor contractual o visite hp.com/support para obtener información sobre las galardonadas opciones de asistencia y servicio de HP en su región. (código de garantía 4E; ID de garantía A033) | E6: 3 | F6: $ 3,358,319 | G6: $ 638,081 | H6: $ 3,996,400 | I6: $ 11,989,200 | J6: $ 1,952,742 | K6: $ 1,952,742 | L6: $ 3,905,484 | M6: =L6*E6 -> $ 11,716,453 | N6: $ 1,674,200 | O6: $ 318,098 | P6: $ 1,992,298 | Q6: $ 5,976,894 | R6: $ 2,310,000 | S6: $ 438,900 | T6: $ 2,748,900 | U6: $ 8,246,700 | V6: $ 9,482,312 | W6: =MEDIAN(I6,M6,Q6,U6) -> $ 9,981,577 | X6: =STDEV(I6:U6) -> $ 4,010,461 | Y6: 42% | Z6: 43212100
A7: 5 | B7: Suministros Informaticos | C7: PC mesa con licenciamiento | D7: Procesador Intel® Core™ i5-13500 * 14 núcleos (6 P-Cores y 8 E-Cores), 20 hilos, 24 MB Intel® Smart *Cache. Max Turbo Frequency: 4.80 GHz * P-Core Frequency => Base: 2.50 GHz - Max Turbo: 4.80 GHz * E-Core Frequency => Base: 1.80 GHz - Max Turbo: 3.50 GHz *Chipset Intel® Q670 *Sistema Operativo Windows 11 Pro de 64 bits en Español. *Pantalla LCD de 23.8" en diagonal, FHD (1920x1080), con retroiluminación WLED, antirreflejo, con Base de altura ajustable *Gráficos Intel® UHD Graphics 770 *Memoria RAM 16 GB (1x16GB) DDR4 3200 SODIMM Soporta hasta 64 GB en (2) slots *Almacenamiento Unidad de estado solido M.2 SSD 512 GB 2280 PCIe NVMe Value *Teclado Teclado HP alámbrico en Español *Mouse Mouse alámbrico *Audio HD con estéreo códec Realtek ALC3252, compatible con tecnología de transmisión múltiple *Cámara Web Webcam FHD 5MP con arreglo de doble micrófono digital integrado *Conectividad LAN: Intel® I219-LM 1 Gigabit Network Connection *WLAN: Realtek RTL8852BE Wi-Fi 6 802.11 + Bluetooth 5.3 *Fuente de poder Adaptador AC de 150 Watt, eficiencia promedio de 88%. Estándar Militar MIL-STD-810H. PARA PORTATIL: ENERGY STAR®️ 8.0, EPEAT GOLD, TCO, FCC, UL, CE, ROHS, ISO 14001-9001, PARA AIO: ENERGY STAR®️ 8.0, EPEAT GOLD, TCO 9.0, FCC, UL, CE, ROHS, ISO 14001-9001, MIL-STD-810H | E7: 134 | F7: $ 6,841,839 | G7: $ 1,299,949 | H7: $ 8,141,788 | I7: $ 1,090,999,576 | J7: =990.92*4252.15 -> $ 4,213,540 | K7: =J7*19% -> $ 800,573 | L7: $ 5,014,113 | M7: =E7*L7 -> $ 671,891,165 | N7: =(990.92*4342.9)+(33.33*4342.9) -> $ 4,448,215 | O7: $ 845,161 | P7: $ 5,293,376 | Q7: $ 709,312,416 | R7: $ 4,152,000 | S7: $ 788,880 | T7: $ 4,940,880 | U7: $ 662,077,920 | V7: $ 783,570,269 | W7: =MEDIAN(I7,M7,Q7,U7) -> $ 690,601,790 | X7: $ 388,681,085 | Y7: 50% | Z7: 43211507
A8: 6 | B8: Suministros Informaticos | C8: PC portatil con licenciamiento | D8: Procesador Intel® Core™ i5-1334U 10 núcleos (2 P-Cores y 8 E-Cores), 12 hilos, 12 MB Intel® Smart Cache Max Turbo Frequency: 4.60 GHz P-Core Frequency => Base: 1.30 GHz - Max Turbo: 4.60 GHz E-Core Frequency => Base: 0.90 GHz - Max Turbo: 3.40 GHz *Chipset Integrado en el procesador *Sistema Operativo Windows 11 Pro de 64 bits en Español. *Pantalla LCD delgada de 14" en diagonal con retroiluminación LED, FHD (1920x1080), con antirreflejo, de 250 nits, UWVA *Gráficos Integrada: Intel® UHD Graphics *Memoria RAM 16 GB (1x16GB) DDR4 3200 *Soporta hasta 32 GB en (2) slots SODIMM *Almacenamiento Unidad de estado solido M.2 SSD 512 GB PCIe NVMe Value *Teclado HP Premium, resistente a derrames en Español *Mouse ClickPad con soporte para gestos y toques múltiples *Audio HD codec Realtek ALC3247 con 2 altavoces estéreo integrados *Cámara Web Webcam HD 720p con arreglo de 2 micrófonos integrados *Conectividad LAN: Realtek RTL8111HSH 10/100/1000 Integrated NIC WLAN: Intel AX211 Wi-Fi 6E 802.11 ax 2x2+ Bluetooth 5.3 *Batería Polímero de 3 celdas 42 Whr de larga duración con autonomía de hasta 11 horas y 30 minutos (MobileMark2018) en Win 10 *Adaptador AC Adaptador AC de 45 Watt *Peso A partir de 1.38 Kg. Estándar Militar MIL-STD-810H. PARA PORTATIL: ENERGY STAR®️ 8.0, EPEAT GOLD, TCO, FCC, UL, CE, ROHS, ISO 14001-9001, PARA AIO: ENERGY STAR®️ 8.0, EPEAT GOLD, TCO 9.0, FCC, UL, CE, ROHS, ISO 14001-9001, MIL-STD-810H | E8: 15 | F8: $ 6,576,709 | G8: $ 1,249,575 | H8: $ 7,826,284 | I8: $ 117,394,255 | J8: $ 4,044,489 | K8: $ 768,453 | L8: $ 4,812,942 | M8: $ 72,194,127 | N8: =4022472+(47.78*4342.9) -> $ 4,229,976 | O8: $ 803,695 | P8: $ 5,033,671 | Q8: $ 75,505,067 | R8: $ 4,764,000 | S8: $ 905,160 | T8: $ 5,669,160 | U8: $ 85,037,400 | V8: $ 87,532,712 | W8: =MEDIAN(I8,M8,Q8,U8) -> $ 80,271,234 | X8: $ 41,722,965 | Y8: 48% | Z8: 43211503
A9: 7 | B9: Suministros Informaticos | C9: Computador apple Laptop | D9: MacBook Pro de 14 pulgadas: Chip M3 Pro de Apple con CPU de 11 núcleos y GPU de 14 núcleos, almacenamiento de 512 GB SSD y memoria unificada de 18 GB | E9: 1 | F9: $ 17,806,457 | G9: $ 3,383,227 | H9: $ 21,189,684 | I9: $ 21,189,684 | J9: $ 9,241,056 | K9: $ 1,755,801 | L9: $ 10,996,856 | M9: $ 10,996,856 | N9: $ 9,467,734 | O9: $ 1,798,869 | P9: $ 11,266,603 | Q9: $ 11,266,603 | R9: $ 11,250,000 | S9: $ 2,137,500 | T9: $ 13,387,500 | U9: $ 13,387,500 | V9: $ 14,210,161 | W9: =MEDIAN(I9,M9,Q9,U9) -> $ 12,327,052 | X9: $ 5,420,302 | Y9: 38% | Z9: 43211503
A10: 8 | B10: Suministros Informaticos | C10: Tablet | D10: Processor MediaTek Helio G99 (8C, 2x A76 @2.2GHz + 6x A55 @2.0GHz) *Graphics Integrated Arm Mali-G57 MC2 GPU *Chipset MediaTek SoC Platform *Memory 6GB Soldered LPDDR4x *Storage 128GB UFS 2.2 (uMCP) *Card Reader microSD Card Slot *Storage Support • 128GB uMCP (UFS-Based MCP, UFS 2.2) • microSD card, supports up to 1TB (exFAT) *Speakers speakers, 1W x4, optimized with Dolby Atmos® *Microphone 2x, Array *Camera Front 8.0MP / Rear 13.0MP *VoiceCall No *Sensors • Accelerometer (G) sensor • Ambient light sensor (ALS) • Coulomb counter • Gyroscope sensor • Hall sensor • Proximity (P) sensor Vibration Motor Eccentric Rotating Mass (ERM) Battery Integrated 7500mAh (Min.) / 7700mAh (Typ.) Power Adapter 10V / 2A Keyboard *Non-backlit, Spanish (LA) *Pen Pen Bundled | E10: 20 | F10: $ 1,472,947 | G10: $ 279,860 | H10: $ 1,752,807 | I10: $ 35,056,140 | J10: =282.8*4252.15 -> $ 1,202,508 | K10: $ 228,477 | L10: $ 1,430,985 | M10: $ 28,619,691 | N10: 0 | P10: 0 | Q10: =P10*M10 -> 0 | R10: $ 1,496,000 | S10: $ 284,240 | T10: $ 1,780,240 | U10: $ 35,604,800 | V10: =AVERAGE(I10,M10,U10) -> $ 33,093,544 | W10: =MEDIAN(I10,M10,U10) -> $ 35,056,140 | X10: =STDEV(I10,M10,U10) -> $ 3,884,170 | Y10: 12% | Z10: 43211509
A11: 9 | B11: Suministros Informaticos | C11: Disco duro externo | D11: Interface: USB 3.2 Gen1 (USB 5Gbps) *Capacity: 2TB (black only) / 5TB (black only) *Dimensions (L x W x H): (/2TB) 121x81x21mm / 4.8x3.2x0.8" * Weight: (/2TB) 201g / 7.1oz *Warranty: 3-year limite | E11: 4 | F11: $ 667,819 | G11: $ 126,886 | H11: $ 794,705 | I11: $ 3,178,821 | J11: =75*4252.15 -> $ 318,911 | K11: $ 60,593 | L11: $ 379,504 | M11: $ 1,518,018 | N11: $ 467,405 | O11: =N11*19% -> $ 88,807 | P11: $ 556,212 | Q11: =P11*E11 -> $ 2,224,848 | R11: $ 364,650 | S11: $ 69,284 | T11: $ 433,934 | U11: =T11*E11 -> $ 1,735,734 | V11: =AVERAGE(I11,M11,Q11,U11) -> $ 2,164,355 | W11: =MEDIAN(I11,M11,Q11,U11) -> $ 1,980,291 | X11: =STDEV(I11:U11) -> $ 978,605 | Y11: 45% | Z11: 43201800
A12: 13 | B12: Suministros Informaticos | C12: Patch Cord | D12: Patch cord 1.5 Mts Cat6 Certificado Azul | E12: 250 | F12: $ 40,139 | G12: $ 7,626 | H12: $ 47,766 | I12: $ 11,941,436 | J12: 0 | K12: 0 | L12: 0 | M12: 0 | N12: $ 13,000 | O12: =N12*19% -> $ 2,470 | P12: $ 15,470 | Q12: =P12*E12 -> $ 3,867,500 | R12: $ 9,000 | S12: $ 1,710 | T12: $ 10,710 | U12: $ 2,677,500 | V12: =AVERAGE(I12,Q12,U12,) -> $ 4,621,609 | W12: =MEDIAN(I12,Q12,U12) -> $ 3,867,500 | X12: =STDEV(I12,Q12,U12) -> $ 5,040,256 | Y12: =X12/V12 -> 109% | Z12: 43223300
B13: TOTAL IVA Incluido | I13: =SUM(I4:I12) -> $ 1,325,175,142 | M13: =SUM(M4:M12) -> $ 814,471,376 | Q13: =SUM(Q4:Q12) -> $ 857,466,928 | U13: =SUM(U4:U12) -> $ 826,095,477 | V13: =SUM(V4:V12) -> $ 964,864,605 | W13: =SUM(W4:W12) -> $ 860,197,593 | X13: =SUM(X4:X12) -> $ 464,684,084 | Y13: =X13/V13 -> 48%
V14: =AVERAGE(I13:U13) -> $ 955,802,231
E15: =4044488.89*E8 -> 60667333.35
A17: 2 | B17: Suministros Informaticos | C17: UPS online 2000va/1600w | D17: SALIDA *Capacidad eléctrica de salida 1.6Kilovatios / 2.0kVA *Potencia máx. configurable (vatios) 1.6Kilovatios / 2.0kVA *Voltaje de salida nominal 120V, *Eficacia con carga completa 88.0 %, *Distorsión de Voltaje de Salida 3 % *Frecuencia de salida (sincronizada con la red eléctrica) 50/60 Hz +/- 3 Hz Sincronizado para principale *Otras tensiones de salida 110, 115*Factor de carga pico 3:1 *Topología Online de doble conversión *Tipo de forma de onda Onda senoidal *Conexiones de salida (4) NEMA 5-20R *Derivación interna (automática y manual) ENTRADA *Voltaje Nominal de Entrada 120V *Frecuencia de entrada 40-70 Hz *Tipo de Conexión de Entrada NEMA L5-20P *Longitud de Cable 1.5metros *Rango de voltaje de entrada en operaciones principales: 55 - 150 Adjustable (half load), 85 - 150V *Número de cables de alimentación:1 *Eficacia con carga completa 88.0 % *Otras tensiones de entrada 110, 115 BATERIAS *Tipo de batería Batería de plomo y ácido *Tiempo típico de recarga 4hour(s) *Suministro de carga de baterías (vatios) 76Vatios *Capacidad VA/hora de la Batería 304 *Rendimiento View Efficiency Graph (Disponible en la ficha técnica de la página COMUNICACIONES Puerto (s) Interfaz DB-9 RS-232, Intelligent Smart Slot, USB Panel de control Consola de estado y control lcd multifunción Alarma Acústica Alarma, si funciona con batería: alarma característica de batería baja: alarma de tono continuo de sobrecarga PROTECCION Y FILTRO CONTRA PICOS DE VOLTAJE Surge energy rating 600Julio CONFORMIDAD Aceptaciones CE, IEC 62040-1-1, IEC 62040-1-2 Garantía estándar 2 años para reparaciones o recambio | E17: 5 | F17: $ 5,299,664 | G17: =F17*19% -> $ 1,006,936 | H17: =F17+G17 -> $ 6,306,600 | I17: =H17*E17 -> $ 31,532,998 | J17: $ 2,947,070 | K17: =J17*19% -> $ 559,943 | L17: =J17+K17 -> $ 3,507,013 | M17: =L17*E17 -> $ 17,535,067 | N17: $ 8,288,000 | O17: =N17*19% -> $ 1,574,720 | P17: =N17+O17 -> $ 9,862,720 | Q17: =P17*E17 -> $ 49,313,600 | R17: $ 2,700,000 | S17: =R17*19% -> $ 513,000 | T17: =R17+S17 -> $ 3,213,000 | U17: =T17*E17 -> $ 16,065,000 | V17: =AVERAGE(I17,M17,Q17,U17) -> $ 28,611,666 | W17: =MEDIAN(I17,M17,Q17,U17) -> $ 24,534,032 | X17: =STDEV(I17:U17) -> $ 14,500,687 | Y17: =X17/V17 -> 51%
A18: 10 | B18: Suministros Informaticos | C18: Camara web full hd | D18: *Resolución FPS Full HD 1080p/30 fps HD 720p/60 fps *Campo visual diagonal 78° *Enfoque automático Sí *Corrección de iluminación automática RightLight 2 Microfóno(s) con cancelación de ruido Dos micrófonos omnidireccionales *Conexión Plug and Play USB-A *Longitud del cable 1,5m, | E18: 8 | F18: $ 574,449 | G18: $ 109,145 | H18: $ 683,595 | I18: $ 5,468,756 | J18: $ 446,667 | K18: =J18*19% -> $ 84,867 | L18: $ 531,533 | M18: =E18*L18 -> $ 4,252,267 | N18: $ 659,832 | O18: =N18*19% -> $ 125,368 | P18: $ 785,200 | Q18: =P18*E18 -> $ 6,281,601 | R18: $ 360,000 | S18: $ 68,400 | T18: $ 428,400 | U18: $ 3,427,200 | V18: =AVERAGE(I18,M18,Q18,U18) -> $ 4,857,456 | W18: =MEDIAN(I18,M18,Q18,U18) -> $ 4,860,512 | X18: =STDEV(I18:U18) -> $ 2,248,294 | Y18: 46% | Z18: 45121500
A19: 11 | B19: Suministros Informaticos | C19: Dron | D19: *Capacidad de almacenamiento 250GB *Memoria expandible 256MB *Dimensiones 15x15 *Tecnología de transmisión inalámbrica OcuSync 2.0 2.4/5.8 GHz *Alcance de hasta 6.2 millas con OcuSync *Resiste vientos de 19 a 24 mph *Diseño ligero y plegable de 8.8 oz. *Gimbal de 3 ejes con video 4K30 *Capture imágenes fijas de 12MP en JPG y Raw *Hasta 31 minutos de tiempo de vuelo *Velocidad de vuelo de hasta 36 mph *Zoom digital de hasta 4x *Modos panorámicos y de vuelo inteligente *Despegue/vuelo estacionario automático y regreso a casa | E19: 1 | F19: $ 6,259,878 | G19: $ 1,189,377 | H19: $ 7,449,255 | I19: $ 7,449,255 | J19: 0 | K19: 0 | L19: 0 | M19: 0 | N19: $ 6,891,573 | O19: =N19*19% -> $ 1,309,399 | P19: $ 8,200,972 | Q19: =P19*E19 -> $ 8,200,972 | R19: $ 3,070,000 | S19: $ 583,300 | T19: $ 3,653,300 | U19: $ 3,653,300 | V19: =AVERAGE(I19,Q19,U19) -> $ 6,434,509 | W19: =MEDIAN(I19,Q19,U19) -> $ 7,449,255 | X19: =STDEV(I19,Q19,U19) -> $ 2,437,747 | Y19: 38%
A20: 12 | B20: Suministros Informaticos | C20: Guaya para pc | D20: Guaya de Seguridad con llave | E20: 50 | F20: $ 70,701 | G20: $ 13,433 | H20: $ 84,134 | I20: $ 4,206,723 | J20: 0 | K20: 0 | L20: 0 | M20: 0 | N20: $ 28,103 | O20: =N20*19% -> $ 5,340 | P20: $ 33,443 | Q20: =P20*E20 -> $ 1,672,129 | R20: $ 41,800 | S20: $ 7,942 | T20: $ 49,742 | U20: $ 2,487,100 | V20: =AVERAGE(I20,Q20,U20) -> $ 2,788,650 | W20: =MEDIAN(I20,Q20,U20) -> $ 2,487,100 | X20: =STDEV(I20,Q20,U20) -> $ 1,293,925 | Y20: 46%

Sheet Hoja1
F2: Cabletronics | J2: Compurent | N2: Novotechno | R2: Teamit
A3: # | B3: Categoria | C3: Descripcion | D3: Especificaciones | E3: Cantidad | F3: Valor unitario | G3: IVA | H3: Valor con IVA | I3: TOTAL (cantidad *valor con IVA) | J3: Valor unitario | K3: IVA | L3: Valor con IVA | M3: TOTAL (cantidad *valor con IVA) | N3: Valor unitario | O3: IVA | P3: Valor con IVA | Q3: TOTAL (cantidad *valor con IVA) | R3: Valor unitario | S3: IVA | T3: Valor con IVA | U3: TOTAL (cantidad *valor con IVA) | V3: Promedio | W3: Mediana | X3: Desviación | Y3: Coeficiente de disperción | Z3: Codigo unspsc
A4: 1 | B4: Suministros Informaticos | C4: Escanner de codigo de barras 1D | D4: *Fuentes de Luz: 650nm laser (diodo laser visible seguro) *Capacidad de decodificación: 10 *Simbologias: EAN-8, EAN-13, UPC-E, CODE39, CODE93, CODE128, Codebar, Industrial 2 of 5, Interleave 2 of 5, Matrix 2 of 5, MSI, China Post Code y todos los códigos de barras 1D *Tipo de scaneo: Laser lineal *Velocidad de escaneo: 300 scaneos por segundo *Metodo de scaneo: Manual y continuo *Angulo de escaneo: sesgo 65°, inclinación 55° y rotación 65° *Precisión: 3 & 4 mil. (0.1mm) *Profundidad del campo de exploracion: 0-280mm (0.33mm, PCS90%) *Tasa de error: Menos de 1 en 1´000.000 *Alertas: Indicador led - función correcta *Indicador acustico - Tono función correcta *Interfaz: USB-HID | E4: 9 | F4: $ 176,754 | G4: =F4*19% -> $ 33,583 | H4: =F4+G4 -> $ 210,337 | I4: =H4*E4 -> $ 1,893,032 | J4: 0 | L4: =J4+K4 -> 0 | M4: =L4*I4 -> 0 | N4: 0 | P4: =N4+O4 -> 0 | Q4: =P4*M4 -> 0 | R4: $ 117,920 | S4: =R4*19% -> $ 22,405 | T4: =R4+S4 -> $ 140,325 | U4: =T4*E4 -> $ 1,262,923 | V4: =AVERAGE(I4,U4) -> $ 1,577,977 | W4: =MEDIAN(I4,U4) -> $ 1,577,977 | X4: =STDEV(I4,U4) -> $ 445,554 | Y4: =X4/V4 -> 28% | Z4: 43211701
A5: 2 | B5: Suministros Informaticos | C5: UPS online 2000va/1600w | D5: SALIDA *Capacidad eléctrica de salida 1.6Kilovatios / 2.0kVA *Potencia máx. configurable (vatios) 1.6Kilovatios / 2.0kVA *Voltaje de salida nominal 120V, *Eficacia con carga completa 88.0 %, *Distorsión de Voltaje de Salida 3 % *Frecuencia de salida (sincronizada con la red eléctrica) 50/60 Hz +/- 3 Hz Sincronizado para principale *Otras tensiones de salida 110, 115*Factor de carga pico 3:1 *Topología Online de doble conversión *Tipo de forma de onda Onda senoidal *Conexiones de salida (4) NEMA 5-20R *Derivación interna (automática y manual) ENTRADA *Voltaje Nominal de Entrada 120V *Frecuencia de entrada 40-70 Hz *Tipo de Conexión de Entrada NEMA L5-20P *Longitud de Cable 1.5metros *Rango de voltaje de entrada en operaciones principales: 55 - 150 Adjustable (half load), 85 - 150V *Número de cables de alimentación:1 *Eficacia con carga completa 88.0 % *Otras tensiones de entrada 110, 115 BATERIAS *Tipo de batería Batería de plomo y ácido *Tiempo típico de recarga 4hour(s) *Suministro de carga de baterías (vatios) 76Vatios *Capacidad VA/hora de la Batería 304 *Rendimiento View Efficiency Graph (Disponible en la ficha técnica de la página COMUNICACIONES Puerto (s) Interfaz DB-9 RS-232, Intelligent Smart Slot, USB Panel de control Consola de estado y control lcd multifunción Alarma Acústica Alarma, si funciona con batería: alarma característica de batería baja: alarma de tono continuo de sobrecarga PROTECCION Y FILTRO CONTRA PICOS DE VOLTAJE Surge energy rating 600Julio CONFORMIDAD Aceptaciones CE, IEC 62040-1-1, IEC 62040-1-2 Garantía estándar 2 años para reparaciones o recambio | E5: 5 | F5: $ 5,299,664 | G5: =F5*19% -> $ 1,006,936 | H5: =F5+G5 -> $ 6,306,600 | I5: =H5*E5 -> $ 31,532,998 | J5: $ 2,947,070 | K5: =J5*19% -> $ 559,943 | L5: =J5+K5 -> $ 3,507,013 | M5: =L5*E5 -> $ 17,535,067 | N5: $ 8,288,000 | O5: =N5*19% -> $ 1,574,720 | P5: =N5+O5 -> $ 9,862,720 | Q5: =P5*E5 -> $ 49,313,600 | R5: $ 2,700,000 | S5: =R5*19% -> $ 513,000 | T5: =R5+S5 -> $ 3,213,000 | U5: $ 16,065,000 | V5: =AVERAGE(I5,M5,Q5,U5) -> $ 28,611,666 | W5: =MEDIAN(I5,M5,Q5,U5) -> $ 24,534,032 | X5: =STDEV(I5:U5) -> $ 14,500,687 | Y5: =X5/V5 -> 51% | AA5: =E5*J5 -> $ 14,735,350
A6: 3 | B6: Suministros Informaticos | C6: Impresora multifuncional a blanco y negro | D6: Tecnologías de resolución de impresión FastRes 1200, ProRes1200, Economode Calidad de impresión en negro (óptima) Líneas nas (1200 x 1200 dpi) Velocidad de impresión monocromática (ISO,A4) Hasta 40 ppm Velocidad de impresión monocromática (ISO, carta) Hasta 42 ppm Velocidad de impresión Imprime hasta 42/40 ppm (A4/carta) Funciones Impresión, copia, escaneado, fax Impresión a doble cara Automático (por defecto) Ciclo de trabajo (mensual, A4) Hasta 80.000 páginas Ciclo de trabajo (mensual, carta) Up to 80,000 pages Funciones del software inteligente de la impresora Impresión automática a doble cara e impresión de folletos, impresión N-up, compaginación, marcas de agua, instalación del controlador de impresora solamente, función Eco Mode para ahorrar tóner, acepta diferentes tamaños y tipos de papel [1] Funciones avanzadas del escáner Vista previa de copia Funciones de software inteligente de fax Reducción de fax automática; Remarcado automático; Envío retardado; Reenvío de fax; Interfaz TAM; Barrera para correo no deseado; Detección de tono distintivo; Página de portada; Bloquear fax; Códigos de facturación; Guardar y cargar; Informes de actividad de fax; Conguración del prejo de marcación; Imprimir registro de faxes; Fax digital HP Tecnología de recurso de ahorro de energía Tecnología HP Auto-On/Auto-Off; Tecnología Instant-on; Tóner EcoSmart negro Cartuchos de reemplazo Cartucho de tóner original HP LaserJet 151A, negro (aproximadamente 3050 páginas), W1510A; Cartucho de tóner original HP LaserJet 151X, negro (aproximadamente 9700 páginas), W1510X [4] Consumibles especiales Cartucho HP JetIntelligence Módem 33,6 kbps Capacidades de red Sí, a través de 10/100/1000Base-TX Ethernet y Gigabit incorporados; Ethernet de cruzado automático; Autenticación mediante 802.1X Capacidad de impresión móvil Aplicación HP Smart; Apple AirPrint™; Con certicación Mopria™; Impresión Wi-Fi Direct® Protocolos de red, admitidos TCP/IP, IPv4, IPv6; Impresión: Puerto TCP-IP 9100 Direct Mode, LPD (solo admite colas de datos sin procesar), Apple AirPrint™, Mopria, impresión IPP; Detección: SLP, Bonjour, Web Services Discovery; Conguración de IP: IPv4 (BootP, DHCP, AutoIP, Manual), IPv6 (Enlace sin estado local y a través del enrutador, con estado completo a través de DHCPv6), administración de certicados y seguridad SSL; Administración: SNMPv1, SNMPv2, SNMPv3, HTTP/HTTPS, Syslog, descarga de FW de FTP Software incluido No se incluyen soluciones de software en la caja, solo en http://hp.com; http://123.hp.com; Sistemas operativos compatibles Windows 11; Windows 10; Windows 7; Windows Client OS; Android; iOS; SO móviles; macOS 10.15 Catalina; macOS 11 Big Sur; macOS 12 Monterey Especicaciones de impacto sustentable Reciclable a través de HP Planet Partners; Contiene plástico reciclado posconsumo Etiquetas ecológicas Declaración de IT ECO Conformidad Blue Angel No, consulte el documento de ECI (Información de Comparación de Ecolabel) Velocidad de copia (negro, calidad normal, A4) Hasta 40 cpm Velocidad de copiado en negro (normal, carta) Up to 42 cpm Velocidad de copia en negro dúplex (A4) Hasta 34 cpm. Velocidad de copia en negro dúplex (carta) Up to 36 cpm Resolución de fax en negro (óptima) Hasta 300 x 300 ppp Fax Sí Velocidad de escaneo (normal, A4) Hasta 29 ppm/46 ipm (blanco y negro), hasta 20 ppm/34 ipm (color) Velocidad de escaneo (normal, carta) Up to 31 ppm/49 ipm (b&w), up to 21 ppm/36 ipm (color) Formato del archivo de digitalización PDF, JPG, TIFF Modos de entrada de digitalización Botones de escaneo, copiado, correo electrónico o archivos en el panel frontal; Software de Escaneo HP; y aplicación de usuario mediante TWAIN o WIA Tecnología de escaneado (CIS) Sensor de imagen de contacto Tipo de escáner Cama plana, alimentador automático de documentos (ADF) Área de pantalla (imperial) 2.13 x 1.59 in Área de pantalla (métrica) 5,4 x 4,05 cm Pantalla 2.7" (6.86 cm) intuitive color touchscreen (CGD) Dimensiones mínimas (anch. x prof. x alt.) 420 x 390 x 323 mm (sin bandejas ni cubiertas extendidas) Dimensiones mínimas (anch. x prof. x alt.) 16.54 x 15.35 x 12.72 in (without trays and covers not extended) Peso 12,6 kg Peso 27.78 lb. Consumo de energía 510 vatios (impresión activa), 7,5 vatios (lista), 0,9 vatios (suspensión), 0,9 vatios (apagado automático/despertar en LAN, activado desde la compra), 0,06 vatios (apagado automático/encendido manual), 0,06 vatios (apagado manual) (Los requisitos de alimentación dependen del país/región en el que se venda la impresora. No modifique los voltajes de funcionamiento. Podría ocasionar daños en la impresora e invalidar la garantía del producto.) Tipo de fuente de alimentación Fuente de alimentación interna (integrada) Garantía delfabricante Un año de garantía de reparación en el almacén / banco. Las opciones de garantía y asistencia varían según el producto, el país y los requisitos legales locales. Póngase en contacto con su proveedor contractual o visite hp.com/support para obtener información sobre las galardonadas opciones de asistencia y servicio de HP en su región. (código de garantía 4E; ID de garantía A033) | E6: 3 | F6: $ 3,358,319 | G6: $ 638,081 | H6: $ 3,996,400 | I6: $ 11,989,200 | J6: $ 1,952,742 | K6: $ 1,952,742 | L6: $ 3,905,484 | M6: =L6*E6 -> $ 11,716,453 | N6: $ 1,674,200 | O6: $ 318,098 | P6: $ 1,992,298 | Q6: $ 5,976,894 | R6: $ 2,310,000 | S6: $ 438,900 | T6: $ 2,748,900 | U6: $ 8,246,700 | V6: $ 9,482,312 | W6: $ 9,981,577 | X6: $ 4,010,461 | Y6: 42% | Z6: 43212100 | AA6: =E6*J6 -> $ 5,858,227
A7: 4 | B7: Suministros Informaticos | C7: Toner para impresora | D7: *Negro, *Laser, *Cartucho, *9700, *SKU W1510X | E7: 6 | F7: $ 2,397,958 | G7: $ 455,612 | H7: $ 2,853,570 | I7: $ 17,121,419 | J7: =244.98*4342.9 -> $ 1,063,924 | K7: =J7*19% -> $ 202,145 | L7: $ 1,266,069 | M7: =E7*L7 -> $ 7,596,415 | N7: $ 1,519,000 | O7: $ 288,610 | P7: $ 1,807,610 | Q7: $ 10,845,660 | R7: $ 1,140,000 | S7: $ 216,600 | T7: $ 1,356,600 | U7: $ 8,139,600 | V7: $ 10,925,773 | W7: $ 9,492,630 | X7: $ 5,274,285 | Y7: 48% | Z7: 44103103 | AA7: =244.98*E7 -> 1469.88 | AB7: =AA7*4342.9 -> $ 6,383,541.85
A8: 5 | B8: Suministros Informaticos | C8: PC mesa con licenciamiento | D8: Procesador Intel® Core™ i5-13500 * 14 núcleos (6 P-Cores y 8 E-Cores), 20 hilos, 24 MB Intel® Smart *Cache. Max Turbo Frequency: 4.80 GHz * P-Core Frequency => Base: 2.50 GHz - Max Turbo: 4.80 GHz * E-Core Frequency => Base: 1.80 GHz - Max Turbo: 3.50 GHz *Chipset Intel® Q670 *Sistema Operativo Windows 11 Pro de 64 bits en Español. *Pantalla LCD de 23.8" en diagonal, FHD (1920x1080), con retroiluminación WLED, antirreflejo, con Base de altura ajustable *Gráficos Intel® UHD Graphics 770 *Memoria RAM 16 GB (1x16GB) DDR4 3200 SODIMM Soporta hasta 64 GB en (2) slots *Almacenamiento Unidad de estado solido M.2 SSD 512 GB 2280 PCIe NVMe Value *Teclado Teclado HP alámbrico en Español *Mouse Mouse alámbrico *Audio HD con estéreo códec Realtek ALC3252, compatible con tecnología de transmisión múltiple *Cámara Web Webcam FHD 5MP con arreglo de doble micrófono digital integrado *Conectividad LAN: Intel® I219-LM 1 Gigabit Network Connection *WLAN: Realtek RTL8852BE Wi-Fi 6 802.11 + Bluetooth 5.3 *Fuente de poder Adaptador AC de 150 Watt, eficiencia promedio de 88%. Estándar Militar MIL-STD-810H. PARA PORTATIL: ENERGY STAR®️ 8.0, EPEAT GOLD, TCO, FCC, UL, CE, ROHS, ISO 14001-9001, PARA AIO: ENERGY STAR®️ 8.0, EPEAT GOLD, TCO 9.0, FCC, UL, CE, ROHS, ISO 14001-9001, MIL-STD-810H | E8: 134 | F8: $ 6,841,839 | G8: $ 1,299,949 | H8: $ 8,141,788 | I8: $ 1,090,999,576 | J8: =(990.92*4342.9)+(33.33*4342.9) -> $ 4,448,215 | K8: =J8*19% -> $ 845,161 | L8: $ 5,293,376 | M8: $ 709,312,416 | N8: $ 4,283,000 | O8: $ 813,770 | P8: $ 5,096,770 | Q8: $ 682,967,180 | R8: $ 4,152,000 | S8: $ 788,880 | T8: $ 4,940,880 | U8: $ 662,077,920 | V8: $ 786,339,273 | W8: $ 696,139,798 | X8: $ 389,700,816 | Y8: 50% | Z8: 43211507
A9: 6 | B9: Suministros Informaticos | C9: PC portatil con licenciamiento | D9: Procesador Intel® Core™ i5-1334U 10 núcleos (2 P-Cores y 8 E-Cores), 12 hilos, 12 MB Intel® Smart Cache Max Turbo Frequency: 4.60 GHz P-Core Frequency => Base: 1.30 GHz - Max Turbo: 4.60 GHz E-Core Frequency => Base: 0.90 GHz - Max Turbo: 3.40 GHz *Chipset Integrado en el procesador *Sistema Operativo Windows 11 Pro de 64 bits en Español. *Pantalla LCD delgada de 14" en diagonal con retroiluminación LED, FHD (1920x1080), con antirreflejo, de 250 nits, UWVA *Gráficos Integrada: Intel® UHD Graphics *Memoria RAM 16 GB (1x16GB) DDR4 3200 *Soporta hasta 32 GB en (2) slots SODIMM *Almacenamiento Unidad de estado solido M.2 SSD 512 GB PCIe NVMe Value *Teclado HP Premium, resistente a derrames en Español *Mouse ClickPad con soporte para gestos y toques múltiples *Audio HD codec Realtek ALC3247 con 2 altavoces estéreo integrados *Cámara Web Webcam HD 720p con arreglo de 2 micrófonos integrados *Conectividad LAN: Realtek RTL8111HSH 10/100/1000 Integrated NIC WLAN: Intel AX211 Wi-Fi 6E 802.11 ax 2x2+ Bluetooth 5.3 *Batería Polímero de 3 celdas 42 Whr de larga duración con autonomía de hasta 11 horas y 30 minutos (MobileMark2018) en Win 10 *Adaptador AC Adaptador AC de 45 Watt *Peso A partir de 1.38 Kg. Estándar Militar MIL-STD-810H. PARA PORTATIL: ENERGY STAR®️ 8.0, EPEAT GOLD, TCO, FCC, UL, CE, ROHS, ISO 14001-9001, PARA AIO: ENERGY STAR®️ 8.0, EPEAT GOLD, TCO 9.0, FCC, UL, CE, ROHS, ISO 14001-9001, MIL-STD-810H | E9: 15 | F9: $ 6,576,709 | G9: $ 1,249,575 | H9: $ 7,826,284 | I9: $ 117,394,255 | J9: =4044488.89+(47.48*4342.9) -> $ 4,250,690 | K9: $ 807,631 | L9: $ 5,058,321 | M9: $ 75,874,813 | N9: $ 4,110,555 | O9: $ 781,005 | P9: $ 4,891,560 | Q9: $ 73,373,407 | R9: $ 4,764,000 | S9: $ 905,160 | T9: $ 5,669,160 | U9: $ 85,037,400 | V9: $ 87,919,969 | W9: $ 80,456,106 | X9: $ 41,848,810 | Y9: 48% | Z9: 43211503
A10: 7 | B10: Suministros Informaticos | C10: Computador apple Laptop | D10: MacBook Pro de 14 pulgadas: Chip M3 Pro de Apple con CPU de 11 núcleos y GPU de 14 núcleos, almacenamiento de 512 GB SSD y memoria unificada de 18 GB | E10: 1 | F10: $ 17,806,457 | G10: $ 3,383,227 | H10: $ 21,189,684 | I10: $ 21,189,684 | J10: $ 9,241,056 | K10: $ 1,755,801 | L10: $ 10,996,856 | M10: $ 10,996,856 | N10: $ 9,467,734 | O10: $ 1,798,869 | P10: $ 11,266,603 | Q10: $ 11,266,603 | R10: $ 11,250,000 | S10: $ 2,137,500 | T10: $ 13,387,500 | U10: $ 13,387,500 | V10: $ 14,210,161 | W10: $ 12,327,052 | X10: $ 5,420,302 | Y10: 38% | Z10: 43211503
A11: 8 | B11: Suministros Informaticos | C11: Tablet | D11: Processor MediaTek Helio G99 (8C, 2x A76 @2.2GHz + 6x A55 @2.0GHz) *Graphics Integrated Arm Mali-G57 MC2 GPU *Chipset MediaTek SoC Platform *Memory 6GB Soldered LPDDR4x *Storage 128GB UFS 2.2 (uMCP) *Card Reader microSD Card Slot *Storage Support • 128GB uMCP (UFS-Based MCP, UFS 2.2) • microSD card, supports up to 1TB (exFAT) *Speakers speakers, 1W x4, optimized with Dolby Atmos® *Microphone 2x, Array *Camera Front 8.0MP / Rear 13.0MP *VoiceCall No *Sensors • Accelerometer (G) sensor • Ambient light sensor (ALS) • Coulomb counter • Gyroscope sensor • Hall sensor • Proximity (P) sensor Vibration Motor Eccentric Rotating Mass (ERM) Battery Integrated 7500mAh (Min.) / 7700mAh (Typ.) Power Adapter 10V / 2A Keyboard *Non-backlit, Spanish (LA) *Pen Pen Bundled | E11: 20 | F11: $ 1,472,947 | G11: $ 279,860 | H11: $ 1,752,807 | I11: $ 35,056,140 | J11: =282.8*4342.9 -> $ 1,228,172 | K11: $ 233,353 | L11: $ 1,461,525 | M11: $ 29,230,496 | N11: 0 | P11: 0 | Q11: =P11*M11 -> 0 | R11: $ 1,496,000 | S11: $ 284,240 | T11: $ 1,780,240 | U11: $ 35,604,800 | V11: =AVERAGE(I11,M11,U11) -> $ 33,297,146 | W11: =MEDIAN(I11,M11,U11) -> $ 35,056,140 | X11: =STDEV(I11,M11,U11) -> $ 3,532,490 | Y11: 11% | Z11: 43211509
A12: 9 | B12: Suministros Informaticos | C12: Disco duro externo | D12: Interface: USB 3.2 Gen1 (USB 5Gbps) *Capacity: 2TB (black only) / 5TB (black only) *Dimensions (L x W x H): (/2TB) 121x81x21mm / 4.8x3.2x0.8" * Weight: (/2TB) 201g / 7.1oz *Warranty: 3-year limite | E12: 4 | F12: $ 667,819 | G12: $ 126,886 | H12: $ 794,705 | I12: $ 3,178,821 | J12: =75*4342.9 -> $ 325,718 | K12: $ 61,886 | L12: $ 387,604 | M12: $ 1,550,415 | N12: $ 467,405 | O12: =N12*19% -> $ 88,807 | P12: $ 556,212 | Q12: =P12*E12 -> $ 2,224,848 | R12: $ 364,650 | S12: $ 69,284 | T12: $ 433,934 | U12: $ 1,735,734 | V12: =AVERAGE(I12,M12,Q12,U12) -> $ 2,172,454 | W12: =MEDIAN(I12,M12,Q12,U12) -> $ 1,980,291 | X12: =STDEV(I12:U12) -> $ 979,660 | Y12: 45% | Z12: 43201800
A13: 10 | B13: Suministros Informaticos | C13: Camara web full hd | D13: *Resolución FPS Full HD 1080p/30 fps HD 720p/60 fps *Campo visual diagonal 78° *Enfoque automático Sí *Corrección de iluminación automática RightLight 2 Microfóno(s) con cancelación de ruido Dos micrófonos omnidireccionales *Conexión Plug and Play USB-A *Longitud del cable 1,5m, | E13: 8 | F13: $ 574,449 | G13: $ 109,145 | H13: $ 683,595 | I13: $ 5,468,756 | J13: $ 446,667 | K13: $ 84,867 | L13: $ 531,533 | M13: $ 4,252,267 | N13: $ 659,832 | O13: =N13*19% -> $ 125,368 | P13: $ 785,200 | Q13: =P13*E13 -> $ 6,281,601 | R13: $ 360,000 | S13: $ 68,400 | T13: $ 428,400 | U13: $ 3,427,200 | V13: =AVERAGE(I13,M13,Q13,U13) -> $ 4,857,456 | W13: =MEDIAN(I13,M13,Q13,U13) -> $ 4,860,512 | X13: =STDEV(I13:U13) -> $ 2,248,294 | Y13: 46% | Z13: 45121500
A14: 11 | B14: Suministros Informaticos | C14: Dron | D14: *Capacidad de almacenamiento 250GB *Memoria expandible 256MB *Dimensiones 15x15 *Tecnología de transmisión inalámbrica OcuSync 2.0 2.4/5.8 GHz *Alcance de hasta 6.2 millas con OcuSync *Resiste vientos de 19 a 24 mph *Diseño ligero y plegable de 8.8 oz. *Gimbal de 3 ejes con video 4K30 *Capture imágenes fijas de 12MP en JPG y Raw *Hasta 31 minutos de tiempo de vuelo *Velocidad de vuelo de hasta 36 mph *Zoom digital de hasta 4x *Modos panorámicos y de vuelo inteligente *Despegue/vuelo estacionario automático y regreso a casa | E14: 1 | F14: $ 6,259,878 | G14: $ 1,189,377 | H14: $ 7,449,255 | I14: $ 7,449,255 | J14: 0 | K14: 0 | L14: 0 | M14: 0 | N14: $ 6,891,573 | O14: =N14*19% -> $ 1,309,399 | P14: $ 8,200,972 | Q14: =P14*E14 -> $ 8,200,972 | R14: $ 3,070,000 | S14: $ 583,300 | T14: $ 3,653,300 | U14: $ 3,653,300 | V14: =AVERAGE(I14,Q14,U14) -> $ 6,434,509 | W14: =MEDIAN(I14,Q14,U14) -> $ 7,449,255 | X14: =STDEV(I14,Q14,U14) -> $ 2,437,747 | Y14: 38%
A15: 12 | B15: Suministros Informaticos | C15: Guaya para pc | D15: Guaya de Seguridad con llave | E15: 50 | F15: $ 70,701 | G15: $ 13,433 | H15: $ 84,134 | I15: $ 4,206,723 | J15: 0 | K15: 0 | L15: 0 | M15: 0 | N15: $ 28,103 | O15: =N15*19% -> $ 5,340 | P15: $ 33,443 | Q15: =P15*E15 -> $ 1,672,129 | R15: $ 41,800 | S15: $ 7,942 | T15: $ 49,742 | U15: $ 2,487,100 | V15: =AVERAGE(I15,Q15,U15) -> $ 2,788,650 | W15: =MEDIAN(I15,Q15,U15) -> $ 2,487,100 | X15: =STDEV(I15,Q15,U15) -> $ 1,293,925 | Y15: 46%
A16: 13 | B16: Suministros Informaticos | C16: Patch Cord | D16: Patch cord 1.5 Mts Cat6 Certificado Azul | E16: 250 | F16: $ 40,139 | G16: $ 7,626 | H16: $ 47,766 | I16: $ 11,941,436 | J16: 0 | K16: 0 | L16: 0 | M16: 0 | N16: $ 13,000 | O16: =N16*19% -> $ 2,470 | P16: $ 15,470 | Q16: =P16*E16 -> $ 3,867,500 | R16: $ 9,000 | S16: $ 1,710 | T16: $ 10,710 | U16: $ 2,677,500 | V16: =AVERAGE(I16,Q16,U16,) -> $ 4,621,609 | W16: =MEDIAN(I16,Q16,U16) -> $ 3,867,500 | X16: =STDEV(I16,Q16,U16) -> $ 5,040,256 | Y16: =X16/V16 -> 109% | Z16: 43223300
B17: TOTAL IVA Incluido | I17: =SUM(I4:I16) -> $ 1,359,421,294 | M17: =SUM(M4:M16) -> $ 868,065,198 | Q17: =SUM(Q4:Q16) -> $ 855,990,393 | U17: =SUM(U4:U16) -> $ 843,802,677 | V17: =SUM(V4:V16) -> $ 993,238,955 | W17: =SUM(W4:W16) -> $ 890,209,970 | X17: =SUM(X4:X16) -> $ 476,733,285 | Y17: =X17/V17 -> 48%
V18: =AVERAGE(I17:U17) -> $ 981,819,890
